fUSD/lending_fUSD_20240630
["ID","MTS","AMOUNT","RATE_DAILY","PERIOD"]
[330698431,1719715851207,-500.0,0.00013917,3]
[330698432,1719715851217,-500.0,0.00013917,3]
[330698433,1719715851226,-500.0,0.00013917,3]
[330698434,1719715851235,-500.0,0.00013917,3]
[330698435,1719715851244,-500.0,0.00013917,3]
[330698436,1719715851253,-665.61,0.00013917,3]
[330698437,1719715851262,-500.0,0.00013917,3]
[330698438,1719715851271,-595.24,0.00013917,3]
[330698439,1719715851280,-500.0,0.00013917,3]
[330698440,1719715851289,-500.0,0.00013917,3]
[330698441,1719715851299,-500.0,0.00013917,3]
[330698442,1719715851308,-500.0,0.00013917,3]
[330698443,1719715851319,-500.0,0.00013917,3]
[330698444,1719715851329,-500.0,0.00013917,3]
[330698445,1719715851337,-500.0,0.00013917,3]
[330698446,1719715851346,-500.0,0.00013917,3]
[330698447,1719715851355,-500.0,0.00013917,3]
[330698448,1719715851364,-500.0,0.00013917,3]
[330698449,1719715851373,-500.0,0.00013917,3]
[330698450,1719715851382,-436.43069219,0.00013917,3]
[330698451,1719715851391,-535.24,0.00013917,3]
[330698452,1719715851400,-500.0,0.00013917,3]
[330698453,1719715851409,-1707.57,0.00013917,3]
[330698454,1719715851418,-500.0,0.00013917,3]
[330698455,1719715851427,-500.0,0.00013917,3]
[330698456,1719715851437,-500.0,0.00013917,3]
[330698457,1719715851446,-500.0,0.00013917,3]
[330698458,1719715851454,-500.0,0.00013917,3]
[330698459,1719715851463,-500.0,0.00013917,3]
[330698460,1719715851472,-1194.29,0.00013917,3]
[330698461,1719715851482,-500.0,0.00013917,3]
[330698462,1719715851491,-862.38,0.00013917,3]
[330698463,1719715851500,-500.0,0.00013917,3]
[330698464,1719715851510,-500.0,0.00013917,3]
[330698465,1719715851519,-500.0,0.00013917,3]
[330698466,1719715851528,-500.0,0.00013917,3]
[330698467,1719715851537,-500.0,0.00013917,3]
[330698468,1719715851546,-500.0,0.00013917,3]
[330698469,1719715851555,-775.65,0.00013917,3]
[330698470,1719715851564,-500.0,0.00013917,3]
[330698471,1719715851575,-500.0,0.00013917,3]
[330698472,1719715851584,-2017.06,0.00013917,3]
[330698473,1719715851592,-500.0,0.00013917,3]
[330698474,1719715851605,-500.0,0.00013917,3]
[330698475,1719715851613,-500.0,0.00013917,3]
[330698476,1719715851624,-500.0,0.00013917,3]
[330698477,1719715851635,-1155.28,0.00013917,3]
[330698478,1719715851646,-500.0,0.00013917,3]
[330698479,1719715851657,-500.0,0.00013917,3]
[330698480,1719715851668,-500.0,0.00013917,3]
[330698481,1719715851680,-500.0,0.00013917,3]
[330698482,1719715851689,-500.0,0.00013917,3]
[330698483,1719715851699,-500.0,0.00013917,3]
[330698484,1719715851708,-500.0,0.00013917,3]
[330698485,1719715851718,-3847.3,0.00013917,3]
[330698486,1719715851728,-500.0,0.00013917,3]
[330698487,1719715851739,-500.0,0.00013917,3]
[330698488,1719715851749,-501.09,0.00013917,3]
[330698489,1719715851758,-500.0,0.00013917,3]
[330698490,1719715851768,-500.0,0.00013917,3]
[330698491,1719715851777,-500.0,0.00013917,3]
[330698492,1719715851788,-500.0,0.00013917,2]
[330698493,1719715851798,-1981.14,0.00013917,3]
[330698494,1719715851807,-670.12,0.00013917,3]
[330698495,1719715851818,-561.32,0.00013917,3]
[330698496,1719715851829,-500.0,0.00013917,3]
[330698497,1719715851838,-500.0,0.00013917,3]
[330698498,1719715851849,-500.0,0.00013917,3]
[330698499,1719715851858,-1322.8,0.00013917,3]
[330698500,1719715851867,-500.0,0.00013917,3]
[330698501,1719715851877,-757.5,0.00013917,3]
[330698502,1719715851888,-500.0,0.00013917,3]
[330698503,1719715851897,-500.0,0.00013917,3]
[330698504,1719715851907,-500.0,0.00013917,3]
[330698505,1719715851916,-579.95,0.00013917,3]
[330698506,1719715851926,-500.0,0.00013917,3]
[330698507,1719715851937,-500.0,0.00013917,3]
[330698508,1719715851947,-1006.07,0.00013917,3]
[330698509,1719715851957,-500.0,0.00013917,3]
[330698510,1719715851967,-500.0,0.00013917,3]
[330698511,1719715851976,-500.0,0.00013917,3]
[330698512,1719715851986,-500.0,0.00013917,3]
[330698513,1719715851997,-500.0,0.00013917,3]
[330698514,1719715852007,-500.0,0.00013917,3]
[330698515,1719715852016,-500.0,0.00013917,3]
[330698516,1719715852026,-500.0,0.00013917,3]
[330698517,1719715852038,-633.84,0.00013917,3]
[330698518,1719715852050,-1187.56,0.00013917,3]
[330698519,1719715852060,-500.0,0.00013917,3]
[330698520,1719715852072,-500.0,0.00013917,3]
[330698521,1719715852082,-500.0,0.00013917,3]
[330698522,1719715852091,-1341.8,0.00013917,3]
[330698523,1719715852100,-500.0,0.00013917,3]
[330698524,1719715852110,-500.0,0.00013917,3]
[330698525,1719715852119,-500.0,0.00013917,3]
[330698526,1719715852131,-500.0,0.00013917,3]
[330698527,1719715852140,-552.84,0.00013917,3]
[330698528,1719715852149,-579.77,0.00013917,3]
[330698529,1719715852160,-603.84,0.00013917,3]
[330698530,1719715852170,-500.0,0.00013917,3]
[330698531,1719715852179,-500.0,0.00013917,3]
[330698532,1719715852189,-500.0,0.00013917,3]
[330698533,1719715852198,-500.0,0.00013917,3]
[330698534,1719715852208,-965.88,0.00013917,3]
[330698535,1719715852217,-500.0,0.00013917,3]
[330698536,1719715852228,-500.0,0.00013917,3]
[330698537,1719715852237,-151.86786147,0.00013917,3]
[330698538,1719715852247,-698.45,0.00013917,3]
[330698539,1719715852257,-500.0,0.00013917,3]
[330698540,1719715852266,-500.0,0.00013917,3]
[330698541,1719715852275,-526.31185139,0.00013917,3]
[330698542,1719715852285,-642.26,0.00013917,3]
[330698543,1719715852294,-500.0,0.00013917,3]
[330698544,1719715852303,-516.27,0.00013917,3]
[330698545,1719715852313,-500.0,0.00013917,3]
[330698546,1719715852324,-500.0,0.00013917,3]
[330698547,1719715852333,-500.0,0.00013917,3]
[330698548,1719715852343,-406.99766914,0.00013917,3]
[330698549,1719715852353,-675.86,0.00013917,3]
[330698550,1719715852477,-500.0,0.00013917,3]
[330698551,1719715852487,-892.41,0.00013917,3]
[330698552,1719715852497,-708.05,0.00013917,3]
[330698553,1719715852506,-763.84,0.00013917,3]
[330698554,1719715852516,-500.0,0.00013917,3]
[330698555,1719715852526,-523.74,0.00013917,3]
[330698556,1719715852535,-713.73,0.00013917,3]
[330698557,1719715852544,-337.67165064,0.00013917,3]
[330698558,1719715852554,-500.0,0.00013917,3]
[330698559,1719715852563,-624.5,0.00013917,3]
[330698560,1719715852575,-500.0,0.00013917,3]
[330698561,1719715852584,-151.0,0.00013917,2]
[330698562,1719715852594,-151.0,0.00013917,2]
[330698563,1719715852604,-500.0,0.00013917,3]
[330698564,1719715852613,-273.83,0.00013917,3]
[330698565,1719715852623,-500.0,0.00013917,3]
[330698566,1719715852632,-3175.52,0.00013917,3]
[330698567,1719715852642,-500.0,0.00013917,3]
[330698568,1719715852651,-500.0,0.00013917,3]
[330698569,1719715852661,-500.0,0.00013917,3]
[330698570,1719715852671,-987.08,0.00013917,3]
[330698571,1719715852680,-500.0,0.00013917,3]
[330698572,1719715852689,-500.0,0.00013917,3]
[330698573,1719715852699,-500.0,0.00013917,3]
[330698574,1719715852708,-1368.96,0.00013917,3]
[330698575,1719715852717,-500.0,0.00013917,3]
[330698576,1719715852727,-500.0,0.00013917,3]
[330698577,1719715852736,-500.0,0.00013917,3]
[330698578,1719715852746,-1311.38,0.00013917,3]
[330698579,1719715852755,-500.0,0.00013917,3]
[330698580,1719715852765,-500.0,0.00013917,3]
[330698581,1719715852774,-907.53,0.00013917,3]
[330698582,1719715852784,-500.0,0.00013917,3]
[330698583,1719715852793,-500.0,0.00013917,3]
[330698584,1719715852803,-507.05,0.00013917,3]
[330698585,1719715852812,-1080.55,0.00013917,3]
[330698586,1719715852822,-1968.8,0.00013917,3]
[330698587,1719715852832,-1471.1,0.00013917,3]
[330698588,1719715852841,-654.89,0.00013917,3]
[330698589,1719715852850,-1161.94,0.00013917,3]
[330698590,1719715852860,-500.0,0.00013917,3]
[330698591,1719715852869,-500.0,0.00013917,3]
[330698592,1719715852879,-500.0,0.00013917,3]
[330698593,1719715852888,-864.95,0.00013917,3]
[330698594,1719715852898,-500.0,0.00013917,3]
[330698595,1719715852907,-500.0,0.00013917,3]
[330698596,1719715852917,-1106.72,0.00013917,3]
[330698597,1719715852927,-906.17,0.00013917,3]
[330698598,1719715852937,-500.0,0.00013917,3]
[330698599,1719715852946,-558.57,0.00013917,3]
[330698600,1719715852956,-500.0,0.00013917,3]
[330698601,1719715852966,-500.0,0.00013917,3]
[330698602,1719715852976,-1853.179,0.00013927,2]
[330698603,1719715852985,-1684.217,0.00013927,2]
[330698604,1719715852995,-1296.724,0.00013927,2]
[330698605,1719715853004,-465.724,0.00013927,2]
[330698606,1719715853014,-458.089,0.00013927,2]
[330698607,1719715853023,-194.992,0.00013927,2]
[330698608,1719715853032,-813.0,0.00013927,2]
[330698609,1719715853048,-2443.804,0.00013927,2]
[330698610,1719715853058,-160.977,0.00013927,2]
[330698611,1719715853068,-1304.0,0.00013927,2]
[330698612,1719715853079,-2019.948,0.00013927,2]
[330698613,1719715853090,-556.09,0.00013927,2]
[330698614,1719715853100,-3255.852,0.00013927,2]
[330698615,1719715853109,-5875.529,0.00013927,2]
[330698616,1719715853121,-1217.433,0.00013927,2]
[330698617,1719715853131,-151.0,0.00013927,2]
[330698618,1719715853140,-150.512,0.00013927,2]
[330698619,1719715853150,-643.491,0.00013927,2]
[330698620,1719715853159,-5173.0,0.00013927,2]
[330698621,1719715853168,-329.958,0.00013927,2]
[330698622,1719715853178,-150.301,0.00013927,2]
[330698623,1719715853188,-38209.0,0.00013927,2]
[330698624,1719715853199,-1081.955,0.00013927,2]
[330698625,1719715853210,-5609.48861001,0.00013936,2]
[330698626,1719715853219,-172.72,0.00013958,2]
[330698627,1719715853228,-201.04935931,0.00013989,2]
[330698628,1719715853238,-331.68410085,0.00013989,2]
[330698629,1719715853247,-188.54546508,0.00013989,2]
[330698630,1719715853257,-187.70999276,0.00013989,2]
[330698631,1719715853267,-158.31418936,0.00013989,2]
[330698632,1719715853276,-163.63235046,0.00013989,2]
[330698633,1719715853286,-161.62126689,0.00013989,2]
[330698634,1719715853295,-276.06933778,0.00013989,2]
[330698635,1719715853305,-348.87315819,0.00013989,2]
[330698636,1719715853315,-191.01913954,0.00013989,2]
[330698637,1719715853324,-235.30745469,0.00013989,2]
[330698638,1719715853334,-155.45084785,0.00013989,2]
[330698639,1719715853344,-204.0,0.0001399,2]
[330698640,1719715853353,-327.0,0.0001399,2]
[330698641,1719715853365,-200.0,0.00013993,2]
[330698642,1719715853377,-150.0,0.00013997,2]
[330698643,1719715853386,-156.26821376,0.00013997,2]
[330698644,1719715853396,-156.04367295,0.00013999,2]
[330698645,1719715853405,-155.30719397,0.00013999,2]
[330698646,1719715853415,-163.66250419,0.00013999,2]
[330698647,1719715853424,-197.77849099,0.00013999,2]
[330698648,1719715853434,-380.67627992,0.00013999,2]
[330698649,1719715853444,-366.25238689,0.00013999,2]
[330698650,1719715853453,-9595.0,0.00014,2]
[330698651,1719715853463,-461.65351825,0.00014,2]
[330698652,1719715853472,-363.3,0.00014,3]
[330698653,1719715853482,-500.0,0.00014026,2]
[330698654,1719715853491,-250.0,0.00014026,2]
[330698655,1719715853500,-500.0,0.00014026,2]
[330698656,1719715853510,-750.0,0.00014026,2]
[330698657,1719715853519,-1000.0,0.00014026,2]
[330698658,1719715853528,-1250.0,0.00014026,2]
[330698659,1719715853538,-500.0,0.00014026,3]
[330698660,1719715853548,-500.0,0.00014026,3]
[330698661,1719715853558,-664.54,0.00014026,3]
[330698662,1719715853568,-699.83,0.00014026,3]
[330698663,1719715853577,-1202.0,0.00014026,3]
[330698664,1719715853587,-522.36,0.00014026,3]
[330698665,1719715853596,-620.04,0.00014026,3]
[330698666,1719715853606,-587.33,0.00014027,3]
[330698667,1719715853615,-730.63,0.00014027,3]
[330698668,1719715853625,-937.17,0.00014027,3]
[330698669,1719715853635,-2172.53,0.00014027,3]
[330698670,1719715853645,-8098.74,0.00014027,3]
[330698671,1719715853655,-500.0,0.00014027,3]
[330698672,1719715853664,-1705.68,0.00014027,3]
[330698673,1719715853674,-621.2,0.00014027,3]
[330698674,1719715853683,-786.94,0.00014027,3]
[330698675,1719715853693,-500.0,0.00014027,3]
[330698676,1719715853703,-575.12,0.00014027,3]
[330698677,1719715853712,-633.74,0.00014027,3]
[330698678,1719715853722,-500.0,0.00014027,3]
[330698679,1719715853731,-500.0,0.00014027,3]
[330698680,1719715853740,-500.0,0.00014027,3]
[330698681,1719715853750,-1034.52,0.00014027,3]
[330698682,1719715853760,-768.2,0.00014027,3]
[330698683,1719715853769,-614.71,0.00014027,3]
[330698684,1719715853779,-500.0,0.00014027,3]
[330698685,1719715853788,-500.0,0.00014027,3]
[330698686,1719715853798,-500.0,0.00014027,3]
[330698687,1719715853807,-342.1562548,0.00014027,3]
[330698688,1719715853817,-500.0,0.00014027,3]
[330698689,1719715853827,-500.0,0.00014027,3]
[330698690,1719715853836,-731.6,0.00014027,3]
[330698691,1719715853846,-500.0,0.00014027,3]
[330698692,1719715853855,-500.0,0.00014027,3]
[330698693,1719715853865,-500.0,0.00014027,3]
[330698694,1719715853875,-500.0,0.00014027,3]
[330698695,1719715853884,-500.0,0.00014027,3]
[330698696,1719715853894,-560.3,0.00014027,3]
[330698697,1719715853904,-500.0,0.00014027,3]
[330698698,1719715853913,-500.0,0.00014027,3]
[330698699,1719715853923,-500.0,0.00014027,3]
[330698700,1719715853932,-500.0,0.00014027,3]
[330698701,1719715853942,-500.0,0.00014027,3]
[330698702,1719715853951,-500.0,0.00014027,3]
[330698703,1719715853960,-500.0,0.00014027,3]
[330698704,1719715853970,-500.0,0.00014027,3]
[330698705,1719715853979,-500.0,0.00014027,3]
[330698706,1719715853988,-670.04,0.00014027,3]
[330698707,1719715853998,-284.37416643,0.00014027,3]
[330698708,1719715854007,-500.0,0.00014027,3]
[330698709,1719715854017,-500.0,0.00014027,3]
[330698710,1719715854027,-500.0,0.00014027,3]
[330698711,1719715854037,-1084.67,0.00014027,3]
[330698712,1719715854049,-670.53,0.00014027,3]
[330698713,1719715854059,-500.0,0.00014027,3]
[330698714,1719715854068,-1047.34,0.00014027,3]
[330698715,1719715854079,-688.83,0.00014027,3]
[330698716,1719715854088,-500.0,0.00014027,3]
[330698717,1719715854099,-500.0,0.00014027,3]
[330698718,1719715854109,-874.39,0.00014027,3]
[330698719,1719715854119,-500.0,0.00014027,3]
[330698720,1719715854132,-500.0,0.00014027,3]
[330698721,1719715854142,-1277.3,0.00014027,3]
[330698722,1719715854153,-989.37,0.00014027,3]
[330698723,1719715854163,-500.0,0.00014027,3]
[330698724,1719715854172,-500.0,0.00014027,3]
[330698725,1719715854182,-500.0,0.00014027,3]
[330698726,1719715854192,-500.0,0.00014027,3]
[330698727,1719715854202,-500.0,0.00014027,3]
[330698728,1719715854212,-500.0,0.00014027,3]
[330698729,1719715854223,-500.0,0.00014027,3]
[330698730,1719715854232,-639.49,0.00014027,3]
[330698731,1719715854242,-500.0,0.00014027,3]
[330698732,1719715854252,-749.55,0.00014027,3]
[330698733,1719715854262,-500.0,0.00014027,3]
[330698734,1719715854272,-500.0,0.00014027,3]
[330698735,1719715854283,-500.0,0.00014027,3]
[330698736,1719715854293,-1660.26,0.00014027,3]
[330698737,1719715854302,-500.0,0.00014027,3]
[330698738,1719715854312,-500.0,0.00014027,3]
[330698739,1719715854323,-500.0,0.00014027,3]
[330698740,1719715854332,-500.0,0.00014027,3]
[330698741,1719715854342,-500.0,0.00014027,3]
[330698742,1719715854352,-500.0,0.00014027,3]
[330698743,1719715854362,-500.0,0.00014027,3]
[330698744,1719715854371,-500.0,0.00014027,3]
[330698745,1719715854380,-500.0,0.00014027,3]
[330698746,1719715854390,-500.0,0.00014027,3]
[330698747,1719715854399,-500.0,0.00014027,3]
[330698748,1719715854410,-500.0,0.00014027,3]
[330698749,1719715854420,-500.0,0.00014027,3]
[330698750,1719715854429,-500.0,0.00014027,3]
[330698751,1719715854439,-500.0,0.00014027,3]
[330698752,1719715854449,-500.0,0.00014027,3]
[330698753,1719715854459,-500.0,0.00014027,3]
[330698754,1719715854469,-609.86,0.00014027,3]
[330698755,1719715854478,-525.93,0.00014027,3]
[330698756,1719715854488,-575.37,0.00014027,3]
[330698757,1719715854499,-500.0,0.00014027,3]
[330698758,1719715854508,-500.0,0.00014027,3]
[330698759,1719715854518,-500.0,0.00014027,3]
[330698760,1719715854527,-1032.93,0.00014027,3]
[330698761,1719715854538,-500.0,0.00014027,3]
[330698762,1719715854547,-500.0,0.00014027,3]
[330698763,1719715854557,-500.0,0.00014027,3]
[330698764,1719715854570,-500.0,0.00014027,3]
[330698765,1719715854579,-500.0,0.00014027,3]
[330698766,1719715854588,-500.0,0.00014027,3]
[330698767,1719715854598,-500.0,0.00014027,3]
[330698768,1719715854872,-500.0,0.00014027,3]
[330698769,1719715854895,-500.0,0.00014027,3]
[330698770,1719715854905,-500.0,0.00014027,3]
[330698771,1719715854915,-500.0,0.00014027,3]
[330698772,1719715854925,-500.0,0.00014027,3]
[330698773,1719715854935,-500.0,0.00014027,3]
[330698774,1719715854944,-403.53778459,0.00014027,3]
[330698775,1719715854955,-500.0,0.00014027,3]
[330698776,1719715854964,-500.0,0.00014027,3]
[330698777,1719715854974,-500.0,0.00014027,3]
[330698778,1719715854983,-500.0,0.00014027,3]
[330698779,1719715854993,-500.0,0.00014027,3]
[330698780,1719715855003,-500.0,0.00014027,3]
[330698781,1719715855013,-500.0,0.00014027,3]
[330698782,1719715855024,-500.0,0.00014027,3]
[330698783,1719715855034,-907.61,0.00014027,3]
[330698784,1719715855050,-503.73,0.00014027,3]
[330698785,1719715855060,-500.0,0.00014027,3]
[330698786,1719715855071,-500.0,0.00014027,3]
[330698787,1719715855080,-500.0,0.00014027,3]
[330698788,1719715855091,-500.0,0.00014027,3]
[330698789,1719715855102,-500.0,0.00014027,3]
[330698790,1719715855111,-500.0,0.00014027,3]
[330698791,1719715855122,-500.0,0.00014027,3]
[330698792,1719715855133,-500.0,0.00014027,3]
[330698793,1719715855143,-500.0,0.00014027,3]
[330698794,1719715855152,-500.0,0.00014027,3]
[330698795,1719715855162,-919.71,0.00014027,3]
[330698796,1719715855171,-500.0,0.00014027,3]
[330698797,1719715855181,-609.42,0.00014027,3]
[330698798,1719715855191,-500.0,0.00014027,3]
[330698799,1719715855201,-561.12,0.00014027,3]
[330698800,1719715855210,-500.0,0.00014027,3]
[330698801,1719715855221,-500.0,0.00014027,3]
[330698802,1719715855230,-500.0,0.00014027,3]
[330698803,1719715855240,-500.0,0.00014027,3]
[330698804,1719715855249,-500.0,0.00014027,3]
[330698805,1719715855259,-500.0,0.00014027,3]
[330698806,1719715855268,-500.0,0.00014027,3]
[330698807,1719715855277,-500.0,0.00014027,3]
[330698808,1719715855287,-500.0,0.00014027,3]
[330698809,1719715855296,-500.0,0.00014027,3]
[330698810,1719715855306,-500.0,0.00014027,3]
[330698811,1719715855317,-500.0,0.00014027,3]
[330698812,1719715855327,-155.73,0.00014027,3]
[330698813,1719715855336,-500.0,0.00014027,3]
[330698814,1719715855345,-500.0,0.00014027,3]
[330698815,1719715855355,-500.0,0.00014027,3]
[330698816,1719715855364,-648.03,0.00014027,3]
[330698817,1719715855373,-500.0,0.00014027,3]
[330698818,1719715855383,-524.56,0.00014027,3]
[330698819,1719715855392,-475.66251015,0.00014027,3]
[330698820,1719715855402,-500.0,0.00014027,3]
[330698821,1719715855411,-500.0,0.00014027,3]
[330698822,1719715855421,-500.0,0.00014027,3]
[330698823,1719715855431,-500.0,0.00014027,3]
[330698824,1719715855440,-500.0,0.00014027,3]
[330698825,1719715855450,-500.0,0.00014027,3]
[330698826,1719715855460,-500.0,0.00014027,3]
[330698827,1719715855470,-500.0,0.00014027,3]
[330698828,1719715855479,-500.0,0.00014027,3]
[330698829,1719715855488,-500.0,0.00014027,3]
[330698830,1719715855498,-500.0,0.00014027,3]
[330698831,1719715855508,-665.61,0.00014027,3]
[330698832,1719715855517,-500.0,0.00014027,3]
[330698833,1719715855527,-595.24,0.00014027,3]
[330698834,1719715855536,-500.0,0.00014027,3]
[330698835,1719715855546,-500.0,0.00014027,3]
[330698836,1719715855555,-500.0,0.00014027,3]
[330698837,1719715855564,-500.0,0.00014027,3]
[330698838,1719715855574,-500.0,0.00014027,3]
[330698839,1719715855583,-500.0,0.00014027,3]
[330698840,1719715855593,-500.0,0.00014027,3]
[330698841,1719715855602,-500.0,0.00014027,3]
[330698842,1719715855612,-500.0,0.00014027,3]
[330698843,1719715855623,-500.0,0.00014027,3]
[330698844,1719715855632,-500.0,0.00014027,3]
[330698845,1719715855642,-535.24,0.00014027,3]
[330698846,1719715855651,-500.0,0.00014027,3]
[330698847,1719715855660,-1707.57,0.00014027,3]
[330698848,1719715855670,-500.0,0.00014027,3]
[330698849,1719715855679,-500.0,0.00014027,3]
[330698850,1719715855689,-500.0,0.00014027,3]
[330698851,1719715855698,-500.0,0.00014027,3]
[330698852,1719715855708,-500.0,0.00014027,3]
[330698853,1719715855718,-500.0,0.00014027,3]
[330698854,1719715855727,-1194.29,0.00014027,3]
[330698855,1719715855738,-500.0,0.00014027,3]
[330698856,1719715855747,-862.38,0.00014027,3]
[330698857,1719715855757,-500.0,0.00014027,3]
[330698858,1719715855766,-500.0,0.00014027,3]
[330698859,1719715855776,-500.0,0.00014027,3]
[330698860,1719715855785,-500.0,0.00014027,3]
[330698861,1719715855795,-500.0,0.00014027,3]
[330698862,1719715855804,-500.0,0.00014027,3]
[330698863,1719715855814,-775.65,0.00014027,3]
[330698864,1719715855825,-500.0,0.00014027,3]
[330698865,1719715855835,-500.0,0.00014027,3]
[330698866,1719715855844,-2017.06,0.00014027,3]
[330698867,1719715855854,-500.0,0.00014027,3]
[330698868,1719715855864,-500.0,0.00014027,3]
[330698869,1719715855874,-500.0,0.00014027,3]
[330698870,1719715855883,-500.0,0.00014027,3]
[330698871,1719715855893,-1155.28,0.00014027,3]
[330698872,1719715855903,-500.0,0.00014027,3]
[330698873,1719715855912,-500.0,0.00014027,3]
[330698874,1719715855922,-319.31045812,0.00014027,3]
[330698875,1719715855932,-500.0,0.00014027,3]
[330698876,1719715855942,-500.0,0.00014027,3]
[330698877,1719715855952,-500.0,0.00014027,3]
[330698878,1719715855961,-500.0,0.00014027,3]
[330698879,1719715855971,-3847.3,0.00014027,3]
[330698880,1719715855980,-500.0,0.00014027,3]
[330698881,1719715855990,-500.0,0.00014027,3]
[330698882,1719715855999,-501.09,0.00014027,3]
[330698883,1719715856009,-500.0,0.00014027,3]
[330698884,1719715856018,-500.0,0.00014027,3]
[330698885,1719715856028,-500.0,0.00014027,3]
[330698886,1719715856039,-500.0,0.00014027,2]
[330698887,1719715856052,-1981.14,0.00014027,3]
[330698888,1719715856062,-670.12,0.00014027,3]
[330698889,1719715856072,-561.32,0.00014027,3]
[330698890,1719715856083,-246.91647713,0.00014027,3]
[330698891,1719715856092,-500.0,0.00014027,3]
[330698892,1719715856102,-500.0,0.00014027,3]
[330698893,1719715856112,-1322.8,0.00014027,3]
[330698894,1719715856123,-500.0,0.00014027,3]
[330698895,1719715856135,-500.0,0.00014027,3]
[330698896,1719715856145,-757.5,0.00014027,3]
[330698897,1719715856154,-500.0,0.00014027,3]
[330698898,1719715856164,-500.0,0.00014027,3]
[330698899,1719715856174,-579.95,0.00014027,3]
[330698900,1719715856183,-500.0,0.00014027,3]
[330698901,1719715856193,-500.0,0.00014027,3]
[330698902,1719715856203,-1006.07,0.00014027,3]
[330698903,1719715856212,-500.0,0.00014027,3]
[330698904,1719715856222,-500.0,0.00014027,3]
[330698905,1719715856231,-500.0,0.00014027,3]
[330698906,1719715856241,-500.0,0.00014027,3]
[330698907,1719715856250,-500.0,0.00014027,3]
[330698908,1719715856259,-500.0,0.00014027,3]
[330698909,1719715856268,-500.0,0.00014027,3]
[330698910,1719715856278,-500.0,0.00014027,3]
[330698911,1719715856287,-633.84,0.00014027,3]
[330698912,1719715856296,-500.0,0.00014027,3]
[330698913,1719715856306,-1187.56,0.00014027,3]
[330698914,1719715856317,-500.0,0.00014027,3]
[330698915,1719715856327,-500.0,0.00014027,3]
[330698916,1719715856337,-1341.8,0.00014027,3]
[330698917,1719715856348,-183.58306541,0.00014027,3]
[330698918,1719715856358,-500.0,0.00014027,3]
[330698919,1719715856368,-500.0,0.00014027,3]
[330698920,1719715856378,-500.0,0.00014027,3]
[330698921,1719715856387,-552.84,0.00014027,3]
[330698922,1719715856396,-579.77,0.00014027,3]
[330698923,1719715856406,-603.84,0.00014027,3]
[330698924,1719715856416,-500.0,0.00014027,3]
[330698925,1719715856426,-500.0,0.00014027,3]
[330698926,1719715856436,-500.0,0.00014027,3]
[330698927,1719715856446,-273.73459011,0.00014027,3]
[330698928,1719715856455,-965.88,0.00014027,3]
[330698929,1719715856465,-500.0,0.00014027,3]
[330698930,1719715856475,-500.0,0.00014027,3]